fUST/lending_fUST_20260304
["ID","MTS","AMOUNT","RATE_DAILY","PERIOD"]
[407653309,1772619038384,-192.81984226,0.00010494,2]
[407653311,1772619038393,-168.3888056,0.00010494,2]
[407653313,1772619038403,-250.0,0.00010494,2]
[407653315,1772619038412,-233.51889341,0.00010494,2]
[407653317,1772619038422,-500.0,0.00010494,2]
[407653319,1772619038432,-242.15909246,0.00010494,2]
[407653321,1772619038442,-250.0,0.00010494,2]
[407653323,1772619038451,-500.0,0.00010494,2]
[407653327,1772619038472,-251.11897888,0.00010494,2]
[407653329,1772619038483,-250.0,0.00010494,2]
[407653331,1772619038494,-500.0,0.00010494,2]
[407653333,1772619038504,-260.4103811,0.00010494,2]
[407653335,1772619038513,-500.0,0.00010494,2]
[407653337,1772619038523,-270.0455652,0.00010494,2]
[407653339,1772619038533,-500.0,0.00010494,2]
[407653341,1772619038542,-280.03725112,0.00010494,2]
[407653343,1772619038551,-500.0,0.00010494,2]
[407653345,1772619038561,-461.67526834,0.00010494,2]
[407653347,1772619038571,-290.39862941,0.00010494,2]
[407653349,1772619038580,-500.0,0.00010494,2]
[407653351,1772619038590,-301.1433787,0.00010494,2]
[407653353,1772619038599,-500.0,0.00010494,2]
[407653355,1772619038609,-500.0,0.00010494,2]
[407653357,1772619038619,-250.0,0.00010494,2]
[407653359,1772619038628,-250.0,0.00010494,2]
[407653361,1772619038638,-250.0,0.00010494,2]
[407653363,1772619038648,-250.0,0.00010494,2]
[407653365,1772619038658,-250.0,0.00010494,2]
[407653367,1772619038667,-250.0,0.00010494,2]
[407653369,1772619038677,-250.0,0.00010494,2]
[407653371,1772619038687,-557.5788265,0.00010494,2]
[407653373,1772619038696,-250.0,0.00010494,2]
[407653375,1772619038705,-250.0,0.00010494,2]
[407653377,1772619038715,-500.0,0.00010494,2]
[407653379,1772619038724,-250.0,0.00010494,2]
[407653381,1772619038734,-250.0,0.00010494,2]
[407653383,1772619038743,-250.0,0.00010494,2]
[407653385,1772619038753,-250.0,0.00010494,2]
[407653387,1772619038763,-500.0,0.00010494,2]
[407653389,1772619038773,-250.0,0.00010494,2]
[407653391,1772619038782,-500.0,0.00010494,2]
[407653393,1772619038791,-250.0,0.00010494,2]
[407653395,1772619038804,-207.14090265,0.00010494,2]
[407653397,1772619038814,-250.0,0.00010494,2]
[407653399,1772619038823,-250.0,0.00010494,2]
[407653401,1772619038836,-250.0,0.00010494,2]
[407653403,1772619038846,-250.0,0.00010494,2]
[407653405,1772619038856,-250.0,0.00010494,2]
[407653407,1772619038865,-250.0,0.00010494,2]
[407653409,1772619038875,-250.0,0.00010494,2]
[407653411,1772619038884,-250.0,0.00010494,2]
[407653413,1772619038894,-250.0,0.00010494,2]
[407653415,1772619038903,-250.0,0.00010494,2]
[407653417,1772619038913,-250.0,0.00010494,2]
[407653419,1772619038923,-250.0,0.00010494,2]
[407653421,1772619038932,-250.0,0.00010494,2]
[407653423,1772619038941,-250.0,0.00010494,2]
[407653425,1772619038951,-250.0,0.00010494,2]
[407653427,1772619038960,-250.0,0.00010494,2]
[407653429,1772619038969,-250.0,0.00010494,2]
[407653431,1772619038979,-250.0,0.00010494,2]
[407653433,1772619038988,-180.68775216,0.00010494,2]
[407653435,1772619038998,-252.52761773,0.00010499,2]
[407653437,1772619039007,-15228.08483851,0.000105,2]
[407653438,1772619039016,-500.0,0.00010678,2]
[407653439,1772619039026,-150.0,0.00010678,2]
[407653440,1772619039035,-150.0,0.00010678,2]
[407653441,1772619039044,-583.14108408,0.00010733,2]
[407653442,1772619039056,-154.68607819,0.00010733,2]
[407653443,1772619039065,-150.0,0.00010733,2]
[407653444,1772619039075,-226.20307471,0.00010739,2]
[407653445,1772619039084,-321.91516838,0.000108,2]
[407653446,1772619039093,-160.16377404,0.00010809,2]
[407653447,1772619039103,-170.81034398,0.00010852,2]
[407653448,1772619039111,-587.0,0.00010852,2]
[407653449,1772619039120,-173.277,0.00010858,2]
[407653450,1772619039129,-3000.0,0.000109,30]
[407653451,1772619039138,-1952.42444211,0.00010904,2]
[407653452,1772619039150,-3000.0,0.0001091,30]
[407653453,1772619039159,-3000.0,0.0001092,30]
[407653454,1772619039168,-3000.0,0.0001093,30]
[407653455,1772619039178,-3000.0,0.0001094,30]
[407653456,1772619039187,-3000.0,0.0001095,30]
[407653457,1772619039196,-2312.83697232,0.00010957,2]
[407653458,1772619039207,-500.0,0.00010958,2]
[407653459,1772619039215,-500.0,0.00010958,2]
[407653460,1772619039224,-500.0,0.00010958,2]
[407653461,1772619039234,-500.0,0.00010958,2]
[407653462,1772619039243,-500.0,0.00010958,2]
[407653464,1772619039252,-500.0,0.00010958,2]
[407653466,1772619039261,-1140.74,0.00010958,2]
[407653468,1772619039272,-500.0,0.00010958,2]
[407653470,1772619039284,-500.0,0.00010958,2]
[407653472,1772619039293,-2165.13,0.00010958,2]
[407653474,1772619039304,-528.39,0.00010958,2]
[407653476,1772619039315,-500.0,0.00010958,2]
[407653478,1772619039324,-2121.73,0.00010958,2]
[407653480,1772619039334,-537.3,0.00010958,2]
[407653482,1772619039344,-500.0,0.00010958,2]
[407653484,1772619039353,-540.19,0.00010958,2]
[407653486,1772619039364,-372.04791829,0.00010958,2]
[407653488,1772619039374,-500.0,0.00010958,2]
[407653490,1772619039384,-841.81,0.00010958,2]
[407653492,1772619039394,-2752.54,0.00010958,2]
[407653494,1772619039404,-500.0,0.00010958,2]
[407653496,1772619039414,-648.27,0.00010958,2]
[407653498,1772619039423,-500.0,0.00010958,2]
[407653500,1772619039432,-894.11,0.00010958,2]
[407653502,1772619039443,-1593.34,0.00010958,2]
[407653504,1772619039453,-500.0,0.00010958,2]
[407653507,1772619039473,-500.0,0.00010958,2]
[407653509,1772619039482,-500.0,0.00010958,2]
[407653511,1772619039491,-782.1,0.00010958,2]
[407653513,1772619039501,-500.0,0.00010958,2]
[407653515,1772619039511,-870.42,0.00010958,2]
[407653518,1772619039520,-152.746357,0.00010958,2]
[407653519,1772619039529,-850.05,0.00010958,2]
[407653521,1772619039538,-349.16440294,0.00010958,2]
[407653523,1772619039548,-983.96,0.00010958,2]
[407653525,1772619039558,-500.0,0.00010958,2]
[407653527,1772619039567,-500.0,0.00010958,2]
[407653529,1772619039576,-1000.0,0.00010958,2]
[407653531,1772619039586,-2657.57,0.00010958,2]
[407653533,1772619039597,-500.0,0.00010958,2]
[407653535,1772619039607,-200.0,0.00010958,2]
[407653537,1772619039617,-500.0,0.00010958,2]
[407653540,1772619039627,-185.45,0.00010958,2]
[407653542,1772619039636,-500.0,0.00010958,2]
[407653544,1772619039646,-500.0,0.00010958,2]
[407653546,1772619039655,-500.0,0.00010958,2]
[407653548,1772619039664,-500.0,0.00010958,2]
[407653550,1772619039674,-500.0,0.00010958,2]
[407653552,1772619039683,-500.0,0.00010958,2]
[407653554,1772619039692,-500.0,0.00010958,2]
[407653556,1772619039701,-516.79,0.00010958,2]
[407653558,1772619039711,-151.0,0.00010958,2]
[407653560,1772619039720,-151.0,0.00010958,2]
[407653562,1772619039730,-151.0,0.00010958,2]
[407653564,1772619039739,-500.0,0.00010958,2]
[407653566,1772619039749,-151.0,0.00010958,2]
[407653568,1772619039759,-151.0,0.00010958,2]
[407653570,1772619039767,-151.0,0.00010958,2]
[407653572,1772619039777,-153.705104,0.00010958,2]
[407653574,1772619039786,-500.0,0.00010958,2]
[407653576,1772619039795,-500.0,0.00010958,2]
[407653578,1772619039806,-644.93,0.00010958,2]
[407653580,1772619039815,-888.01,0.00010958,2]
[407653582,1772619039824,-500.0,0.00010958,2]
[407653584,1772619039833,-500.0,0.00010958,2]
[407653586,1772619039842,-500.0,0.00010958,2]
[407653588,1772619039852,-500.0,0.00010958,2]
[407653590,1772619039861,-500.0,0.00010958,2]
[407653592,1772619039871,-500.0,0.00010958,2]
[407653594,1772619039880,-3174.44,0.00010958,2]
[407653596,1772619039889,-500.0,0.00010958,2]
[407653598,1772619039899,-500.0,0.00010958,2]
[407653600,1772619039908,-500.0,0.00010958,2]
[407653602,1772619039918,-500.0,0.00010958,2]
[407653604,1772619039928,-1034.34,0.00010958,2]
[407653606,1772619039937,-500.0,0.00010958,2]
[407653608,1772619039947,-598.19058994,0.00010958,2]
[407653610,1772619039956,-500.0,0.00010958,2]
[407653612,1772619039970,-712.38,0.00010958,2]
[407653614,1772619039979,-500.0,0.00010958,2]
[407653616,1772619039989,-500.0,0.00010958,2]
[407653618,1772619039999,-1817.25,0.00010958,2]
[407653620,1772619040008,-1456.29,0.00010958,2]
[407653622,1772619040018,-500.0,0.00010958,2]
[407653624,1772619040028,-2824.97,0.00010958,2]
[407653626,1772619040037,-500.0,0.00010958,2]
[407653628,1772619040047,-500.0,0.00010958,2]
[407653630,1772619040059,-785.08,0.00010958,2]
[407653632,1772619040068,-500.0,0.00010958,2]
[407653634,1772619040078,-609.16,0.00010958,2]
[407653636,1772619040088,-500.0,0.00010958,2]
[407653638,1772619040097,-500.0,0.00010958,2]
[407653640,1772619040107,-1041.42,0.00010958,2]
[407653642,1772619040117,-794.45,0.00010958,2]
[407653644,1772619040127,-500.0,0.00010958,2]
[407653646,1772619040136,-500.0,0.00010958,2]
[407653649,1772619040147,-500.27335676,0.00010958,2]
[407653684,1772619040489,-500.0,0.00010958,2]
[407653686,1772619040499,-500.0,0.00010958,2]
[407653688,1772619040508,-1634.59,0.00010958,2]
[407653691,1772619040517,-500.0,0.00010958,2]
[407653694,1772619040527,-500.0,0.00010958,2]
[407653697,1772619040537,-500.0,0.00010958,2]
[407653700,1772619040547,-500.0,0.00010958,2]
[407653702,1772619040559,-869.77,0.00010958,2]
[407653704,1772619040568,-500.0,0.00010958,2]
[407653707,1772619040579,-655.94,0.00010958,2]
[407653709,1772619040588,-932.01,0.00010958,2]
[407653711,1772619040598,-500.0,0.00010958,2]
[407653713,1772619040608,-500.0,0.00010958,2]
[407653715,1772619040617,-500.0,0.00010958,2]
[407653717,1772619040626,-387.52638254,0.00010958,2]
[407653719,1772619040635,-500.0,0.00010958,2]
[407653721,1772619040645,-500.0,0.00010958,2]
[407653723,1772619040654,-500.0,0.00010958,2]
[407653725,1772619040663,-500.0,0.00010958,2]
[407653726,1772619040672,-500.0,0.00010958,2]
[407653728,1772619040681,-508.06255376,0.00010958,2]
[407653730,1772619040690,-500.0,0.00010958,2]
[407653732,1772619040699,-500.0,0.00010958,2]
[407653734,1772619040708,-500.0,0.00010958,2]
[407653736,1772619040717,-500.0,0.00010958,2]
[407653738,1772619040726,-500.0,0.00010958,2]
[407653740,1772619040737,-403.85026831,0.00010958,2]
[407653742,1772619040751,-685.95,0.00010958,2]
[407653744,1772619040760,-511.46,0.00010958,2]
[407653746,1772619040769,-2861.79,0.00010958,2]
[407653748,1772619040778,-500.0,0.00010958,2]
[407653750,1772619040787,-500.0,0.00010958,2]
[407653752,1772619040795,-531.42,0.00010958,2]
[407653754,1772619040806,-500.0,0.00010958,2]
[407653756,1772619040816,-1272.32,0.00010958,2]
[407653758,1772619040825,-500.0,0.00010958,2]
[407653760,1772619040834,-500.0,0.00010958,2]
[407653761,1772619040843,-693.3,0.00010958,2]
[407653764,1772619040853,-500.0,0.00010958,2]
[407653766,1772619040862,-500.0,0.00010958,2]
[407653768,1772619040872,-1037.19,0.00010958,2]
[407653770,1772619040881,-501.28170729,0.00010958,2]
[407653772,1772619040890,-500.0,0.00010958,2]
[407653774,1772619040899,-588.83,0.00010958,2]
[407653776,1772619040910,-896.57,0.00010958,2]
[407653778,1772619040918,-500.0,0.00010958,2]
[407653780,1772619040927,-500.0,0.00010958,2]
[407653782,1772619040938,-500.0,0.00010958,2]
[407653784,1772619040948,-778.87,0.00010958,2]
[407653786,1772619040958,-601.49,0.00010958,2]
[407653788,1772619040967,-757.05,0.00010958,2]
[407653790,1772619040976,-943.59,0.00010958,2]
[407653792,1772619040985,-500.0,0.00010958,2]
[407653794,1772619040994,-500.0,0.00010958,2]
[407653795,1772619041003,-500.0,0.00010958,2]
[407653798,1772619041013,-500.0,0.00010958,2]
[407653799,1772619041023,-500.0,0.00010958,2]
[407653801,1772619041032,-500.0,0.00010958,2]
[407653803,1772619041041,-500.0,0.00010958,2]
[407653805,1772619041051,-500.0,0.00010958,2]
[407653807,1772619041060,-837.91,0.00010958,2]
[407653809,1772619041069,-500.0,0.00010958,2]
[407653811,1772619041078,-500.0,0.00010958,2]
[407653813,1772619041088,-500.0,0.00010958,2]
[407653815,1772619041097,-500.0,0.00010958,2]
[407653817,1772619041105,-500.0,0.00010958,2]
[407653819,1772619041115,-5804.65,0.00010958,2]
[407653821,1772619041123,-500.0,0.00010958,2]
[407653823,1772619041133,-500.0,0.00010958,2]
[407653825,1772619041142,-797.88,0.00010958,2]
[407653827,1772619041151,-779.49,0.00010958,2]
[407653829,1772619041160,-4509.57,0.00010958,2]
[407653831,1772619041169,-500.0,0.00010958,2]
[407653833,1772619041179,-500.0,0.00010958,2]
[407653835,1772619041188,-1320.83,0.00010958,2]
[407653837,1772619041197,-500.0,0.00010958,2]
[407653839,1772619041210,-1346.53,0.00010958,2]
[407653841,1772619041220,-500.0,0.00010958,2]
[407653843,1772619041229,-604.06,0.00010958,2]
[407653845,1772619041238,-693.14,0.00010958,2]
[407653847,1772619041248,-564.7,0.00010958,2]
[407653849,1772619041257,-500.0,0.00010958,2]
[407653851,1772619041267,-1338.66,0.00010958,2]
[407653852,1772619041280,-585.73997552,0.00010958,2]
[407653855,1772619041291,-500.0,0.00010958,2]
[407653857,1772619041304,-783.67,0.00010958,2]
[407653858,1772619041315,-922.34,0.00010958,2]
[407653860,1772619041325,-517.88,0.00010958,2]
[407653863,1772619041335,-500.0,0.00010958,2]
[407653865,1772619041346,-500.0,0.00010958,2]
[407653867,1772619041356,-1488.22,0.00010958,2]
[407653869,1772619041366,-500.0,0.00010958,2]
[407653871,1772619041376,-936.74,0.00010958,2]
[407653873,1772619041385,-632.19,0.00010958,2]
[407653875,1772619041396,-500.0,0.00010958,2]
[407653877,1772619041405,-500.0,0.00010958,2]
[407653879,1772619041414,-500.0,0.00010958,2]
[407653881,1772619041423,-500.0,0.00010958,2]
[407653883,1772619041433,-500.0,0.00010958,2]
[407653885,1772619041442,-565.22,0.00010958,2]
[407653887,1772619041452,-3040.43,0.00010958,2]
[407653889,1772619041461,-493.51691043,0.00010958,2]
[407653891,1772619041470,-500.0,0.00010958,2]
[407653892,1772619041479,-1389.17,0.00010958,2]
[407653895,1772619041489,-500.0,0.00010958,2]
[407653896,1772619041498,-518.96,0.00010958,2]
[407653898,1772619041508,-569.11,0.00010958,2]
[407653900,1772619041518,-1483.92,0.00010958,2]
[407653902,1772619041527,-500.0,0.00010958,2]
[407653905,1772619041537,-909.91,0.00010958,2]
[407653907,1772619041547,-740.76,0.00010958,2]
[407653908,1772619041559,-500.0,0.00010958,2]
[407653910,1772619041568,-2050.28,0.00010958,2]
[407653913,1772619041578,-500.0,0.00010958,2]
[407653915,1772619041588,-500.0,0.00010958,2]
[407653917,1772619041597,-1778.19,0.00010958,2]
[407653919,1772619041607,-500.0,0.00010958,2]
[407653921,1772619041616,-500.0,0.00010958,2]
[407653923,1772619041626,-500.0,0.00010958,2]
[407653925,1772619041635,-1383.61,0.00010958,2]
[407653927,1772619041645,-500.0,0.00010958,2]
[407653928,1772619041654,-1159.72,0.00010958,2]
[407653930,1772619041663,-500.0,0.00010958,2]
[407653932,1772619041672,-1867.99,0.00010958,2]
[407653934,1772619041682,-500.0,0.00010958,2]
[407653936,1772619041692,-500.0,0.00010958,2]
[407653938,1772619041701,-500.0,0.00010958,2]
[407653940,1772619041710,-500.0,0.00010958,2]
[407653942,1772619041719,-1947.15,0.00010958,2]
[407653944,1772619041729,-500.0,0.00010958,2]
[407653947,1772619041740,-500.0,0.00010958,2]
[407653949,1772619041750,-2310.57,0.00010958,2]
[407653950,1772619041759,-500.0,0.00010958,2]
[407653952,1772619041768,-500.0,0.00010958,2]
[407653955,1772619041781,-717.4,0.00010958,2]
[407653957,1772619041790,-500.0,0.00010958,2]
[407653959,1772619041799,-500.0,0.00010958,2]
[407653961,1772619041812,-500.0,0.00010958,2]
[407653963,1772619041821,-500.0,0.00010958,2]
[407653965,1772619041830,-1766.13,0.00010958,2]
[407653967,1772619041839,-551.96309126,0.00010958,2]
[407653969,1772619041848,-500.0,0.00010958,2]
[407653971,1772619041857,-3621.52,0.00010958,2]
[407653973,1772619041867,-854.11,0.00010958,2]
[407653975,1772619041876,-500.0,0.00010958,2]
[407653977,1772619041886,-654.68,0.00010958,2]
[407653979,1772619041895,-500.0,0.00010958,2]
[407653981,1772619041904,-263.3065492,0.00010958,2]
[407653983,1772619041913,-895.84,0.00010958,2]
[407653985,1772619041923,-500.0,0.00010958,2]
[407653987,1772619041932,-2852.98,0.00010958,2]
[407653989,1772619041942,-492.51116849,0.00010958,2]
[407653991,1772619041951,-500.0,0.00010958,2]
[407653993,1772619041960,-500.0,0.00010958,2]
[407653995,1772619041969,-500.0,0.00010958,2]
[407653997,1772619041979,-4531.81,0.00010958,2]
[407653999,1772619041988,-545.07,0.00010958,2]
[407654001,1772619041997,-500.0,0.00010958,2]
[407654003,1772619042006,-500.0,0.00010958,2]
[407654005,1772619042016,-1085.84,0.00010958,2]
[407654007,1772619042026,-500.0,0.00010958,2]
[407654009,1772619042034,-500.0,0.00010958,2]
[407654011,1772619042043,-1200.76,0.00010958,2]
[407654013,1772619042053,-608.29,0.00010958,2]
[407654014,1772619042062,-703.36,0.00010958,2]
[407654016,1772619042072,-1475.88,0.00010958,2]
[407654018,1772619042082,-500.0,0.00010958,2]
[407654021,1772619042092,-4183.06,0.00010958,2]
[407654023,1772619042101,-1018.52,0.00010958,2]
[407654025,1772619042111,-500.0,0.00010958,2]
[407654027,1772619042120,-500.0,0.00010958,2]
[407654028,1772619042129,-500.0,0.00010958,2]
[407654031,1772619042139,-2846.78,0.00010958,2]
[407654032,1772619042148,-500.0,0.00010958,2]
[407654034,1772619042157,-561.25,0.00010958,2]
[407654036,1772619042166,-500.0,0.00010958,2]
[407654038,1772619042175,-529.88,0.00010958,2]
[407654040,1772619042185,-2419.33,0.00010958,2]
[407654042,1772619042194,-1043.13,0.00010958,2]
[407654044,1772619042203,-500.0,0.00010958,2]
[407654046,1772619042213,-500.0,0.00010958,2]
[407654048,1772619042223,-500.0,0.00010958,2]
[407654050,1772619042232,-500.0,0.00010958,2]
[407654052,1772619042242,-500.0,0.00010958,2]
[407654053,1772619042251,-500.0,0.00010958,2]
[407654055,1772619042261,-500.0,0.00010958,2]
[407654057,1772619042270,-1468.99,0.00010958,2]
[407654059,1772619042279,-500.0,0.00010958,2]
[407654061,1772619042293,-1807.2,0.00010958,2]
[407654063,1772619042303,-505.91,0.00010958,2]
[407654066,1772619042312,-3223.34,0.00010958,2]
[407654068,1772619042322,-500.0,0.00010958,2]
[407654070,1772619042333,-500.0,0.00010958,2]
[407654072,1772619042342,-500.0,0.00010958,2]
[407654074,1772619042351,-1288.81,0.00010958,2]
[407654076,1772619042361,-500.0,0.00010958,2]
[407654078,1772619042369,-500.0,0.00010958,2]
[407654080,1772619042379,-500.0,0.00010958,2]
[407654082,1772619042390,-633.571772,0.00010958,2]
[407654084,1772619042399,-1277.32,0.00010958,2]
[407654086,1772619042408,-587.84,0.00010958,2]
[407654090,1772619042418,-1283.5,0.00010958,2]
[407654093,1772619042427,-642.64,0.00010958,2]
[407654096,1772619042437,-2392.92,0.00010958,2]
[407654099,1772619042446,-500.0,0.00010958,2]
[407654102,1772619042455,-1484.52,0.00010958,2]
[407654104,1772619042464,-1153.03,0.00010958,2]
[407654107,1772619042474,-913.64,0.00010958,2]
[407654110,1772619042483,-1187.44,0.00010958,2]
[407654114,1772619042493,-500.0,0.00010958,2]
[407654119,1772619042503,-500.0,0.00010958,2]
[407654121,1772619042513,-500.0,0.00010958,2]
[407654123,1772619042522,-991.56,0.00010958,2]
[407654127,1772619042531,-6393.67,0.00010958,2]
[407654130,1772619042541,-500.0,0.00010958,2]
[407654132,1772619042550,-500.0,0.00010958,2]
[407654134,1772619042560,-500.0,0.00010958,2]
[407654136,1772619042569,-1421.03,0.00010958,2]
[407654138,1772619042579,-562.14,0.00010958,2]
[407654140,1772619042588,-500.0,0.00010958,2]
[407654141,1772619042598,-500.0,0.00010958,2]
[407654142,1772619042607,-2186.1,0.00010958,2]
[407654143,1772619042616,-500.0,0.00010958,2]
[407654145,1772619042625,-623.96,0.00010958,2]
[407654146,1772619042635,-531.42,0.00010958,2]
[407654148,1772619042644,-753.75,0.00010958,2]
[407654150,1772619042653,-500.0,0.00010958,2]
[407654152,1772619042662,-500.0,0.00010958,2]
[407654153,1772619042671,-500.0,0.00010958,2]
[407654155,1772619042681,-530.73,0.00010958,2]
[407654156,1772619042690,-1136.33,0.00010958,2]
[407654157,1772619042700,-500.0,0.00010958,2]
[407654158,1772619042710,-500.0,0.00010958,2]
[407654159,1772619042719,-333.35679814,0.00010958,2]
[407654160,1772619042729,-500.0,0.00010958,2]
[407654161,1772619042738,-898.15,0.00010958,2]
[407654162,1772619042748,-500.0,0.00010958,2]
[407654163,1772619042757,-1177.91,0.00010958,2]
[407654164,1772619042767,-500.0,0.00010958,2]
[407654165,1772619042776,-674.31,0.00010958,2]
[407654166,1772619042785,-536.29,0.00010958,2]
[407654167,1772619042796,-1199.39,0.00010958,2]
[407654168,1772619042808,-500.0,0.00010958,2]
[407654169,1772619042817,-500.0,0.00010958,2]
[407654170,1772619042827,-638.83,0.00010958,2]
[407654171,1772619042836,-1105.67,0.00010958,2]
[407654172,1772619042845,-500.0,0.00010958,2]
[407654173,1772619042855,-1920.57,0.00010958,2]
[407654174,1772619042864,-500.0,0.00010958,2]
[407654175,1772619042873,-500.0,0.00010958,2]
[407654176,1772619042883,-500.0,0.00010958,2]
[407654177,1772619042892,-945.73,0.00010958,2]
[407654178,1772619042901,-500.0,0.00010958,2]
[407654179,1772619042911,-1036.49,0.00010958,2]
[407654180,1772619042920,-500.0,0.00010958,2]
[407654181,1772619042929,-5113.23,0.00010958,2]
[407654182,1772619042938,-790.44,0.00010958,2]
[407654183,1772619042947,-390.28027856,0.00010958,2]
[407654184,1772619042956,-500.0,0.00010958,2]
[407654185,1772619042966,-3748.53,0.00010958,2]
[407654186,1772619042975,-500.0,0.00010958,2]
[407654187,1772619042984,-1120.99,0.00010958,2]
[407654188,1772619042995,-500.0,0.00010958,2]
[407654189,1772619043004,-500.0,0.00010958,2]
[407654190,1772619043013,-826.74,0.00010958,2]
[407654191,1772619043022,-500.0,0.00010958,2]
[407654192,1772619043032,-500.0,0.00010958,2]
[407654193,1772619043041,-1175.42,0.00010958,2]
[407654194,1772619043050,-500.0,0.00010958,2]
[407654195,1772619043060,-500.0,0.00010958,2]
[407654196,1772619043070,-2436.02,0.00010958,2]
[407654197,1772619043079,-1782.38,0.00010958,2]
[407654198,1772619043088,-532.03,0.00010958,2]
[407654199,1772619043099,-500.0,0.00010958,2]
[407654200,1772619043108,-500.0,0.00010958,2]
[407654201,1772619043118,-2720.84,0.00010958,2]
[407654202,1772619043127,-500.0,0.00010958,2]
[407654203,1772619043136,-500.0,0.00010958,2]
[407654204,1772619043145,-500.0,0.00010958,2]
[407654205,1772619043154,-511.51,0.00010958,2]
[407654207,1772619043164,-1031.31,0.00010958,2]
[407654209,1772619043173,-500.0,0.00010958,2]
[407654211,1772619043182,-4043.41,0.00010958,2]
[407654214,1772619043191,-500.0,0.00010958,2]
[407654217,1772619043201,-500.0,0.00010958,2]
[407654219,1772619043210,-500.0,0.00010958,2]
[407654220,1772619043220,-509.88,0.00010958,2]
[407654221,1772619043230,-500.0,0.00010958,2]
[407654222,1772619043239,-500.0,0.00010958,2]
[407654223,1772619043250,-1565.5,0.00010958,2]
[407654224,1772619043259,-358.69966933,0.00010958,2]
[407654225,1772619043268,-500.0,0.00010958,2]
[407654226,1772619043281,-500.0,0.00010958,2]
[407654227,1772619043290,-500.0,0.00010958,2]
[407654228,1772619043300,-500.0,0.00010958,2]
[407654229,1772619043311,-1051.82,0.00010958,2]
[407654230,1772619043321,-3861.27,0.00010958,2]
[407654232,1772619043331,-500.0,0.00010958,2]
[407654233,1772619043341,-7283.22,0.00010958,2]
[407654235,1772619043352,-500.0,0.00010958,2]
[407654237,1772619043361,-500.0,0.00010958,2]
[407654239,1772619043370,-500.0,0.00010958,2]
[407654241,1772619043379,-636.37,0.00010958,2]
[407654242,1772619043388,-500.0,0.00010958,2]
[407654244,1772619043398,-949.08,0.00010958,2]
[407654246,1772619043408,-1258.52,0.00010958,2]
[407654247,1772619043418,-500.0,0.00010958,2]
[407654249,1772619043427,-629.28,0.00010958,2]
[407654251,1772619043436,-500.0,0.00010958,2]
[407654253,1772619043446,-847.56,0.00010958,2]
[407654255,1772619043456,-500.0,0.00010958,2]
[407654257,1772619043465,-1413.12,0.00010958,2]
[407654259,1772619043474,-500.0,0.00010958,2]
[407654261,1772619043484,-1225.97,0.00010958,2]
[407654263,1772619043494,-500.0,0.00010958,2]
[407654265,1772619043503,-500.0,0.00010958,2]
[407654267,1772619043513,-500.0,0.00010958,2]
[407654269,1772619043522,-3607.14,0.00010958,2]
[407654271,1772619043531,-583.53,0.00010958,2]